bitfinex/quotes_SOLUSD_20220302
["timestamp","ask_amount","ask_price","bid_price","bid_amount"]
[1646188538180,112.9,98.985,98.851,2.54904003]
[1646188538181,24.7616,98.949,98.851,2.54904003]
[1646188538381,24.7616,98.949,98.88,15.1663]
[1646188538985,60.12023321,98.948,98.88,15.1663]
[1646188539183,60.12023321,98.948,98.86,67.7043]
[1646188539394,60.12023321,98.948,98.87,12.15]
[1646188540005,60.12023321,98.948,98.852,47.3622]
[1646188540406,162.22023321,98.948,98.852,47.3622]
[1646188540608,170.14023321,98.948,98.852,47.3622]
[1646188540805,2.53129168,98.947,98.852,47.3622]
[1646188542007,102.1,98.939,98.83,15.1725]
[1646188542208,102.1,98.939,98.83,27.3225]
[1646188542407,104.63129168,98.939,98.83,27.3225]
[1646188543006,2.53129168,98.939,98.83,27.3225]
[1646188544813,15.1747,98.93,98.83,27.3225]
[1646188545010,23.1483,98.929,98.83,27.3225]
[1646188545812,23.1483,98.929,98.831,4.045]
[1646188546512,23.1483,98.929,98.831,6.59404003]
[1646188546913,23.1483,98.929,98.831,2.54904003]
[1646188549717,102.1,98.928,98.831,2.54904003]
[1646188549918,109.79,98.928,98.83,12.15]
[1646188550120,109.79,98.928,98.824,28.9078]
[1646188550918,109.79,98.928,98.824,4.045]
[1646188550919,102.1,98.919,98.824,4.045]
[1646188551123,102.1,98.917,98.8,12.15]
[1646188551317,4.046,98.916,98.8,12.15]
[1646188551520,4.046,98.916,98.798,24.0552]
[1646188551719,102.1,98.915,98.798,24.0552]
[1646188551917,4.046,98.914,98.798,24.0552]
[1646188552122,102.1,98.913,98.798,24.0552]
[1646188552319,102.1,98.909,98.798,24.0552]
[1646188552517,106.146,98.909,98.798,24.0552]
[1646188553119,102.1,98.899,98.798,24.0552]
[1646188553620,102.1,98.899,98.78,15.1813]
[1646188553621,110.7,98.899,98.78,15.1813]
[1646188553821,5.0,98.891,98.78,15.1813]
[1646188554023,102.1,98.897,98.78,15.1813]
[1646188554922,5.0,98.888,98.78,15.1813]
[1646188555222,102.1,98.886,98.78,15.1813]
[1646188555420,102.1,98.886,98.773,2.54904003]
[1646188555621,102.1,98.884,98.773,2.54904003]
[1646188555821,114.136,98.884,98.764,4.046]
[1646188556022,102.1,98.879,98.761,4.046]
[1646188556222,15.1872,98.85,98.76,4.046]
[1646188556423,187.4940913,98.849,98.748,2.54904003]
[1646188557723,85.3940913,98.849,98.748,2.54904003]
[1646188558222,102.1,98.848,98.748,2.54904003]
[1646188558823,85.3940913,98.849,98.748,2.54904003]
[1646188559232,85.3940913,98.849,98.75,12.15]
[1646188560026,85.3940913,98.849,98.751,4.048]
[1646188560226,102.1,98.848,98.751,4.048]
[1646188560631,109.69,98.848,98.751,4.048]
[1646188560826,109.69,98.848,98.75,12.15]
[1646188561030,109.69,98.848,98.748,2.54904003]
[1646188561031,15.1886,98.84,98.748,2.54904003]
[1646188561231,15.1886,98.84,98.74,5.0]
[1646188561232,102.1,98.839,98.74,5.0]
[1646188561629,104.63129168,98.839,98.74,5.0]
[1646188561830,104.63129168,98.839,98.733,22.8732]
[1646188562031,4.049,98.838,98.733,22.8732]
[1646188562231,106.149,98.838,98.734,2.54904003]
[1646188562429,4.049,98.838,98.734,26.24219193]
[1646188562628,24.5641,98.837,98.735,47.75496355]
[1646188562830,24.5641,98.837,98.735,73.99715548]
[1646188563029,24.5641,98.837,98.736,49.69485548]
[1646188563228,24.5641,98.837,98.74,15.1878]
[1646188563834,24.5641,98.837,98.741,2.54904003]
[1646188564128,23.4004,98.847,98.741,2.54904003]
[1646188564129,23.4004,98.847,98.742,89.0821519]
[1646188564331,23.4004,98.847,98.748,61.34]
[1646188564529,23.4004,98.847,98.771,2.34735042]
[1646188564828,23.4004,98.847,98.78,12.15]
[1646188565230,54.64208021,98.846,98.781,2.54904003]
[1646188565830,23.4004,98.847,98.781,2.54904003]
[1646188567229,23.4004,98.847,98.79,15.181]
[1646188568635,23.4003,98.883,98.79,15.181]
[1646188568834,23.4003,98.883,98.79,17.73004003]
[1646188569035,23.4003,98.883,98.79,29.88004003]
[1646188569235,23.4003,98.883,98.8,15.1786]
[1646188569440,23.4003,98.883,98.8,27.3286]
[1646188569638,43.91449656,98.882,98.8,27.3286]
[1646188570639,23.4003,98.883,98.8,29.87764003]
[1646188570837,23.4003,98.883,98.801,2.28752085]
[1646188571041,23.4003,98.883,98.82,15.1763]
[1646188571342,23.5048,98.891,98.82,24.0863]
[1646188571539,23.5048,98.891,98.821,2.54904003]
[1646188572740,23.5048,98.891,98.813,4.046]
[1646188572940,23.5048,98.891,98.811,4.046]
[1646188573141,23.5048,98.891,98.83,15.175]
[1646188578162,23.4075,98.917,98.83,15.175]
[1646188578562,23.4075,98.917,98.831,2.54904003]
[1646188578765,23.4075,98.917,98.85,15.1719]
[1646188579164,50.45446447,98.916,98.85,15.1719]
[1646188583369,23.4075,98.917,98.85,15.1719]
[1646188587378,24.8951,98.933,98.851,2.54904003]
[1646188587575,23.6586,98.948,98.851,4.91791174]
[1646188587776,23.6586,98.948,98.88,15.1666]
[1646188588175,23.6586,98.948,98.881,2.54904003]
[1646188588676,23.6586,98.948,98.885,5.0]
[1646188588875,23.6586,98.948,98.881,2.54904003]
[1646188590085,23.6586,98.948,98.89,15.1648]
[1646188591079,23.62645035,98.948,98.89,15.1648]
[1646188591378,102.1,98.947,98.89,15.1648]
[1646188591578,102.1,98.947,98.871,22.6273]
[1646188592179,102.1,98.947,98.864,2.54904003]
[1646188592385,102.1,98.947,98.844,2.54904003]
[1646188592579,23.62645035,98.948,98.844,2.54904003]
[1646188592580,102.1,98.939,98.844,2.54904003]
[1646188592780,102.1,98.939,98.83,15.1745]
[1646188593983,102.1,98.929,98.83,15.1745]
[1646188594181,102.1,98.927,98.83,15.1745]
[1646188596986,22.8805,98.928,98.84,15.1736]
[1646188597983,22.8805,98.928,98.841,2.54904003]
[1646188598184,22.8805,98.928,98.86,15.1707]
[1646188602288,22.8805,98.928,98.841,27.15584003]
[1646188602890,102.1,98.927,98.84,15.1728]
[1646188603091,104.63129168,98.927,98.823,2.54904003]
[1646188603292,113.08129168,98.927,98.823,2.54904003]
[1646188603491,2.53129168,98.926,98.823,2.54904003]
[1646188604791,106.145,98.928,98.823,2.54904003]
[1646188605095,102.1,98.917,98.823,2.54904003]
[1646188605898,102.1,98.909,98.8,19.2239]
[1646188606099,102.1,98.889,98.8,15.1789]
[1646188606297,15.1813,98.89,98.8,15.1789]
[1646188606298,102.1,98.887,98.8,15.1789]
[1646188606498,42.96711901,98.888,98.8,15.1789]
[1646188606700,42.96711901,98.888,98.802,4.046]
[1646188606998,42.96711901,98.888,98.81,15.1785]
[1646188609614,27.3288,98.91,98.81,15.1785]
[1646188609816,12.15,98.92,98.81,15.1785]
[1646188610016,24.9469,98.929,98.811,4.045]
[1646188610214,24.9469,98.929,98.83,15.175]
[1646188610520,102.1,98.928,98.83,15.175]
[1646188610714,102.1,98.926,98.83,15.175]
[1646188610915,102.1,98.919,98.83,15.175]
[1646188611315,102.1,98.919,98.81,15.1775]
[1646188612314,15.1762,98.92,98.81,15.1775]
[1646188614218,102.1,98.918,98.83,15.1753]
[1646188615923,23.9328,98.919,98.83,15.1753]
[1646188617424,102.1,98.918,98.83,15.1753]
[1646188617824,23.9328,98.919,98.83,15.1753]
[1646188618526,102.1,98.918,98.83,15.1753]
[1646188619727,23.9328,98.919,98.83,15.1753]
[1646188622332,102.1,98.918,98.83,15.1753]
[1646188622735,23.9328,98.919,98.83,15.1753]
[1646188623734,102.1,98.918,98.83,15.1753]
[1646188623934,23.9328,98.919,98.83,15.1753]
[1646188626940,102.1,98.918,98.83,15.1753]
[1646188627139,102.1,98.918,98.814,24.7042]
[1646188627140,102.1,98.909,98.815,4.045]
[1646188627342,15.1778,98.91,98.814,24.7042]
[1646188628843,23.9328,98.919,98.82,15.1771]
[1646188629646,23.9328,98.919,98.821,2.21482246]
[1646188629844,23.9328,98.919,98.84,15.1728]
[1646188631355,23.9328,98.919,98.86,15.1709]
[1646188631549,23.9328,98.919,98.86,21.0409]
[1646188633970,23.9328,98.919,98.86,15.1709]
[1646188636378,23.44,98.948,98.86,15.1709]
[1646188636577,22.9053,98.947,98.86,15.1709]
[1646188636773,53.58485175,98.928,98.86,15.1709]
[1646188644102,77.45535175,98.928,98.85,15.1724]
[1646188645200,27.45535175,98.928,98.851,19.99916436]
[1646188645600,23.8705,98.928,98.86,15.1704]
[1646188646600,47.76460504,98.951,98.86,27.3204]
[1646188646802,23.1134,98.947,98.87,15.1679]
[1646188647000,24.0638,98.978,98.87,15.1679]
[1646188647200,47.1772,98.978,98.872,0.27907818]
[1646188647401,47.1772,98.978,98.874,2.17007679]
[1646188647602,47.1772,98.978,98.875,0.27907818]
[1646188647801,47.1772,98.978,98.89,15.1649]
[1646188648002,48.98966682,98.977,98.891,24.05362476]
[1646188649002,47.1772,98.978,98.891,24.05362476]
[1646188649707,47.1772,98.978,98.892,2.20913376]
[1646188650003,47.1772,98.978,98.892,9.92913376]
[1646188653405,4.043,98.99,98.892,9.92913376]
[1646188653406,4.043,98.99,98.901,2.79059959]
[1646188653606,23.6083,99.008,98.901,2.79059959]
[1646188653806,23.6083,99.008,98.905,5.0]
[1646188654006,23.6083,99.008,98.906,0.3078838]
[1646188654206,46.4809644,98.992,98.907,2.16292984]
[1646188654406,46.4809644,98.992,98.906,18.70009233]
[1646188654611,46.4809644,98.992,98.906,18.39220853]
[1646188655408,23.6083,99.008,98.906,18.39220853]
[1646188655608,23.6083,99.008,98.91,12.15]
[1646188656007,23.6083,99.008,98.911,2.54904003]
[1646188656407,48.03613828,98.992,98.911,2.54904003]
[1646188657008,102.1,98.991,98.907,23.6198]
[1646188657407,102.1,98.989,98.876,22.82648524]
[1646188657808,102.1,98.989,98.871,22.7679]
[1646188657809,2.53818216,98.988,98.871,22.7679]
[1646188658011,102.1,98.987,98.872,17.69514688]
[1646188658209,4.043,98.986,98.872,17.69514688]
[1646188658410,102.1,98.985,98.872,17.69514688]
[1646188658612,4.043,98.984,98.872,17.69514688]
[1646188658809,102.1,98.983,98.872,17.69514688]
[1646188659009,102.1,98.969,98.872,17.69514688]
[1646188659212,126.5637,98.969,98.872,17.69514688]
[1646188659610,2.53818216,98.968,98.871,22.7679]
[1646188659812,5.0,98.966,98.871,22.7679]
[1646188660211,102.1,98.959,98.871,22.7679]
[1646188661416,102.1,98.949,98.832,22.82648524]
[1646188661616,102.1,98.949,98.84,12.15]
[1646188662220,102.1,98.947,98.84,12.15]
[1646188662520,102.1,98.945,98.844,19.88471807]
[1646188662921,102.1,98.939,98.84,12.15]
[1646188663124,102.1,98.939,98.823,24.2168]
[1646188663319,2.53818216,98.938,98.823,24.2168]
[1646188663519,5.0,98.926,98.823,24.2168]
[1646188663920,102.1,98.924,98.837,17.59302429]
[1646188664121,102.1,98.919,98.837,17.59302429]
[1646188665130,102.1,98.919,98.823,24.2168]
[1646188665131,107.1,98.923,98.812,22.82648524]
[1646188665321,102.1,98.909,98.78,15.1796]
[1646188665523,102.1,98.909,98.78,27.3296]
[1646188665724,2.53818216,98.908,98.78,27.3296]
[1646188665920,2.53818216,98.908,98.79,12.15]
[1646188666121,5.0,98.896,98.81,18.20150795]
[1646188667023,102.1,98.889,98.81,18.20150795]
[1646188667222,102.1,98.889,98.804,2.54904003]
[1646188667423,102.1,98.887,98.804,2.54904003]
[1646188667649,102.1,98.887,98.781,25.37552527]
[1646188667847,102.1,98.887,98.78,12.15]
[1646188668045,2.53818216,98.886,98.78,12.15]
[1646188668246,102.1,98.885,98.781,17.38405328]
[1646188668646,102.1,98.879,98.76,12.15]
[1646188668846,109.49,98.879,98.76,12.15]
[1646188669047,2.53818216,98.878,98.749,24.7044]
[1646188669246,4.048,98.877,98.749,24.7044]
[1646188669449,106.148,98.877,98.749,24.7044]
[1646188669649,2.53818216,98.876,98.75,19.96583395]
[1646188669848,106.148,98.875,98.75,19.96583395]
[1646188670047,102.1,98.849,98.75,19.96583395]
[1646188670250,102.1,98.847,98.75,19.96583395]
[1646188672651,102.1,98.847,98.75,32.11583395]
[1646188672853,102.1,98.839,98.75,12.15]
[1646188673049,102.1,98.839,98.72,12.15]
[1646188673250,104.63818216,98.839,98.712,22.9696]
[1646188673650,4.049,98.838,98.712,22.9696]
[1646188673849,4.049,98.838,98.732,15.61572757]
[1646188674054,15.1924,98.82,98.732,15.61572757]
[1646188674350,102.1,98.818,98.732,15.61572757]
[1646188677550,102.1,98.818,98.712,22.9696]
[1646188677751,102.1,98.809,98.712,22.9696]
[1646188678353,24.3922,98.808,98.712,22.9696]
[1646188678559,24.3922,98.808,98.713,20.00250963]
[1646188678954,102.1,98.806,98.714,21.00269288]
[1646188684561,23.7514,98.807,98.714,21.00269288]
[1646188684765,50.6367,98.85,98.715,106.78406319]
[1646188684766,4.049,98.838,98.715,106.78406319]
[1646188684961,46.2438,98.849,98.732,2.39850061]
[1646188685163,5.0,98.868,98.748,1.89842415]
[1646188685377,5.0,98.868,98.76,12.15]
[1646188685663,52.1627,98.902,98.76,12.15]
[1646188685664,102.1,98.89,98.76,12.15]
[1646188685862,102.1,98.888,98.762,2.39783585]
[1646188686064,4.046,98.887,98.762,2.39783585]
[1646188686264,4.046,98.887,98.77,5.0]
[1646188686563,4.046,98.887,98.771,1.93939881]
[1646188687065,4.046,98.887,98.781,18.90614259]
[1646188687263,4.046,98.888,98.781,18.90614259]
[1646188688066,106.146,98.888,98.781,18.90614259]
[1646188688266,111.146,98.888,98.781,18.90614259]
[1646188688466,107.1,98.888,98.781,18.90614259]
[1646188690266,107.1,98.888,98.782,4.046]
[1646188691468,80.71600639,98.889,98.782,4.046]
[1646188691666,80.71600639,98.889,98.79,15.1796]
[1646188691867,80.71600639,98.889,98.791,4.046]
[1646188692267,80.71600639,98.889,98.79,15.1796]
[1646188694669,80.71600639,98.889,98.791,2.16820779]
[1646188694870,80.71600639,98.889,98.792,4.046]
[1646188695670,80.71600639,98.889,98.801,1.63054653]
[1646188697672,80.71600639,98.889,98.801,7.41054653]
[1646188698869,80.71600639,98.889,98.801,1.63054653]
[1646188706387,80.71600639,98.889,98.81,15.1766]
[1646188706585,23.3051,98.889,98.81,27.3266]
[1646188706784,23.3051,98.889,98.811,0.26135793]
[1646188707184,23.3051,98.889,98.81,32.3266]
[1646188707387,23.3051,98.889,98.812,2.54904003]
[1646188707598,23.3051,98.889,98.82,15.1742]
[1646188707886,59.27189688,98.903,98.825,5.0]
[1646188708084,59.27189688,98.903,98.826,0.33930485]
[1646188708908,59.27189688,98.903,98.825,5.0]
[1646188709508,59.27189688,98.903,98.821,21.36470986]
[1646188712212,101.2,98.901,98.82,12.15]
[1646188712411,101.2,98.901,98.801,2.54904003]
[1646188712611,101.2,98.901,98.78,12.15]
[1646188712612,101.2,98.899,98.78,12.15]
[1646188713216,101.2,98.899,98.814,39.6623934]
[1646188713612,101.2,98.899,98.814,24.8169]
[1646188714016,101.2,98.889,98.78,12.15]
[1646188714214,101.2,98.887,98.779,4.046]
[1646188714625,101.2,98.885,98.78,19.89966145]
[1646188715114,101.2,98.869,98.78,19.89966145]
[1646188715314,101.2,98.867,98.78,19.89966145]
[1646188715714,2.53483531,98.866,98.78,19.89966145]
[1646188716116,101.2,98.867,98.78,19.89966145]
[1646188717014,101.2,98.859,98.78,19.89966145]
[1646188717216,101.2,98.859,98.779,4.046]
[1646188718217,101.2,98.859,98.78,15.82376913]
[1646188718619,15.1859,98.86,98.78,15.82376913]
[1646188718818,22.8062,98.867,98.78,15.82376913]
[1646188720721,101.2,98.866,98.78,15.82376913]
[1646188720920,22.8062,98.867,98.78,15.82376913]
[1646188721319,22.8062,98.867,98.78,31.00506913]
[1646188722927,22.8062,98.867,98.78,15.82376913]
[1646188723224,101.2,98.866,98.78,15.82376913]
[1646188728532,22.8062,98.867,98.78,31.00526913]
[1646188729235,22.8062,98.867,98.78,43.15526913]
[1646188729435,22.8062,98.867,98.781,2.01090985]
[1646188729635,22.8062,98.867,98.8,15.1784]
[1646188730035,51.47221037,98.866,98.801,4.71291999]
[1646188731739,51.47221037,98.866,98.8,15.1784]
[1646188731938,51.47221037,98.866,98.79,12.15]
[1646188732138,57.14221037,98.866,98.79,12.15]
[1646188732339,101.2,98.865,98.79,12.15]
[1646188732541,101.2,98.865,98.78,5.0]
[1646188732944,2.53483531,98.864,98.766,16.22335725]
[1646188734148,101.2,98.859,98.76,15.1836]
[1646188734353,101.2,98.859,98.757,23.6927]
[1646188734548,2.53483531,98.858,98.757,23.6927]
[1646188735167,2.53483531,98.858,98.761,17.99723485]
[1646188735766,101.2,98.847,98.761,17.99723485]
[1646188736469,124.7171,98.847,98.761,17.99723485]
[1646188738270,23.5171,98.847,98.761,17.99723485]
[1646188738969,50.73973139,98.848,98.761,17.99723485]
[1646188739169,50.73973139,98.848,98.762,2.09994624]
[1646188739370,50.73973139,98.848,98.763,20.34377493]
[1646188741073,50.73973139,98.848,98.77,15.183]
[1646188741272,50.73973139,98.848,98.77,27.333]
[1646188744378,101.2,98.847,98.77,12.15]
[1646188744582,50.73973139,98.848,98.761,17.99723485]
[1646188744985,125.4216,98.847,98.761,17.99723485]
[1646188745983,24.2216,98.847,98.761,17.99723485]
[1646188747985,101.2,98.846,98.761,17.99723485]
[1646188748384,101.2,98.846,98.76,15.1848]
[1646188748986,108.37,98.846,98.74,27.3369]
[1646188749386,108.37,98.846,98.74,45.02481568]
[1646188749987,101.2,98.839,98.728,5.2845416]
[1646188750187,101.2,98.839,98.721,24.3495]
[1646188750588,101.2,98.839,98.722,20.3765266]
[1646188750986,101.2,98.839,98.723,15.67727992]
[1646188751190,101.2,98.827,98.73,15.1897]
[1646188751389,60.48160184,98.828,98.73,15.1897]
[1646188751588,23.1604,98.827,98.731,2.08073259]
[1646188751788,23.1604,98.827,98.732,2.1435989]
[1646188752189,23.1604,98.827,98.734,2.2454649]
[1646188752588,23.1604,98.827,98.741,4.8594092]
[1646188752793,101.2,98.826,98.741,4.8594092]
[1646188753992,23.1604,98.827,98.741,4.8594092]
[1646188755094,23.1604,98.827,98.75,15.1869]
[1646188756896,23.1604,98.827,98.751,2.22115205]
[1646188757098,23.1604,98.827,98.77,15.182]
[1646188757295,15.1848,98.87,98.77,15.182]
[1646188757498,22.8339,98.864,98.771,24.2858]
[1646188757995,57.62090795,98.863,98.772,15.67727992]
[1646188759001,57.62090795,98.863,98.78,15.1823]
[1646188769826,57.62090795,98.863,98.772,15.67727992]
[1646188770126,101.2,98.862,98.772,15.67727992]
[1646188770330,57.62090795,98.863,98.772,15.67727992]
[1646188771126,57.62090795,98.863,98.78,15.1825]
[1646188774731,22.8339,98.864,98.78,15.1825]
[1646188774932,22.8339,98.864,98.8,15.1793]
[1646188775133,22.8339,98.864,98.8,21.0193]
[1646188775532,15.1785,98.91,98.801,0.31264616]
[1646188775732,93.11494425,98.909,98.801,28.40755536]
[1646188775934,93.11494425,98.909,98.801,28.0949092]
[1646188776133,101.2,98.908,98.801,28.0949092]
[1646188776534,4.046,98.907,98.801,28.0949092]
[1646188777035,4.046,98.907,98.81,15.1769]
[1646188779233,2.52210668,98.906,98.81,15.1769]
[1646188779533,4.046,98.907,98.81,15.1769]
[1646188779733,101.2,98.908,98.81,15.1769]
[1646188780739,116.4975,98.908,98.81,15.1769]
[1646188781941,101.2,98.908,98.81,15.1769]
[1646188785548,101.2,98.908,98.801,23.2355]
[1646188785549,101.2,98.899,98.801,23.2355]
[1646188785745,105.246,98.899,98.801,23.2355]
[1646188785945,101.2,98.897,98.801,23.2355]
[1646188786144,5.0,98.888,98.801,23.2355]
[1646188786345,101.2,98.886,98.779,17.75642474]
[1646188786548,101.2,98.886,98.771,23.1446]
[1646188786950,2.51578065,98.885,98.771,23.1446]
[1646188787347,106.2,98.883,98.771,23.1446]
[1646188787570,106.2,98.883,98.772,17.00897961]
[1646188787750,108.71578065,98.883,98.772,17.00897961]
[1646188788150,48.86946467,98.868,98.772,17.00897961]
[1646188788349,124.8763,98.867,98.772,17.00897961]
[1646188790851,124.8763,98.867,98.771,23.1446]
[1646188795359,124.8763,98.867,98.772,21.53820621]
[1646188800362,2.52217459,98.866,98.772,21.53820621]
[1646188800563,124.8763,98.867,98.772,21.53820621]
[1646188802169,23.6763,98.867,98.78,15.1824]
[1646188802369,23.6763,98.867,98.78,27.3324]
[1646188802585,71.99356467,98.868,98.781,24.08724624]
[1646188802786,71.99356467,98.868,98.782,2.20909752]
[1646188803084,71.99356467,98.868,98.783,2.35772166]
[1646188803286,71.99356467,98.868,98.784,2.19459684]
[1646188803488,71.99356467,98.868,98.784,71.68119396]
[1646188803686,71.99356467,98.868,98.785,2.54904003]
[1646188803886,23.1241,98.868,98.8,15.1778]
[1646188804185,24.9923,98.899,98.8,15.1778]
[1646188804487,24.9923,98.899,98.801,29.51562542]
[1646188804884,47.67251032,98.898,98.802,5.43499478]
[1646188805085,47.67251032,98.898,98.812,5.0]
[1646188805285,101.2,98.897,98.813,22.6528]
[1646188806884,47.67251032,98.898,98.813,22.6528]
[1646188807085,47.67251032,98.898,98.82,15.1765]
[1646188807889,101.2,98.897,98.82,15.1765]
[1646188808087,101.2,98.897,98.803,6.59504003]
[1646188808088,101.2,98.897,98.803,4.046]
[1646188808289,103.72217459,98.897,98.792,22.7764]
[1646188808488,2.52217459,98.896,98.792,22.7764]
[1646188809090,101.2,98.897,98.793,14.74051306]
[1646188810090,101.2,98.889,98.8,15.1796]
[1646188814298,47.67251032,98.898,98.8,15.1796]
[1646188816097,47.67251032,98.898,98.801,9.04660254]
[1646188816300,47.67251032,98.898,98.831,5.79617606]
[1646188817098,101.2,98.897,98.804,23.742]
[1646188817301,103.72217459,98.897,98.804,23.742]
[1646188817700,2.52217459,98.896,98.804,23.742]
[1646188819103,101.2,98.889,98.804,23.742]
[1646188819506,101.2,98.889,98.793,18.01546278]
[1646188819708,100.7,98.889,98.793,18.01546278]
[1646188820508,100.7,98.889,98.794,23.5532]
[1646188822310,2.52851125,98.888,98.794,23.5532]
[1646188822813,100.7,98.889,98.794,23.5532]
[1646188825212,2.52851125,98.888,98.794,23.5532]
[1646188825612,100.7,98.889,98.794,23.5532]
[1646188826013,2.52851125,98.888,98.794,23.5532]
[1646188826414,100.7,98.886,98.794,23.5532]
[1646188830238,100.7,98.879,98.781,4.046]
[1646188830436,100.7,98.879,98.771,27.3424]
[1646188830636,2.52851125,98.878,98.771,27.3424]
[1646188830837,2.52851125,98.878,98.771,23.2964]
[1646188831235,100.7,98.879,98.78,15.1826]
[1646188831439,101.2,98.879,98.78,15.1826]
[1646188833242,2.52851125,98.878,98.78,15.1826]
[1646188834038,101.2,98.869,98.78,15.1826]
[1646188834237,101.2,98.867,98.78,15.1826]
[1646188837151,67.66362917,98.868,98.78,15.1826]
[1646188838153,101.2,98.867,98.78,15.1826]
[1646188838952,101.2,98.867,98.771,23.2964]
[1646188839153,126.0315,98.867,98.771,23.2964]
[1646188844857,101.2,98.859,98.771,23.2964]
[1646188845059,101.2,98.859,98.761,4.046]
[1646188845258,101.2,98.857,98.749,23.1382]
[1646188845457,101.2,98.855,98.749,23.1382]
[1646188845858,2.52851125,98.854,98.749,23.1382]
[1646188846057,2.52851125,98.854,98.749,22.6382]
[1646188846258,101.2,98.839,98.749,22.6382]
[1646188846461,101.2,98.835,98.749,22.6382]
[1646188851973,46.20105464,98.836,98.749,22.6382]
[1646188852171,46.20105464,98.836,98.749,29.2082]
[1646188852572,46.20105464,98.836,98.75,2.34454435]
[1646188852771,46.20105464,98.836,98.751,1.98692826]
[1646188852975,24.0678,98.838,98.76,12.15]
[1646188853173,24.0678,98.838,98.762,2.08013331]
[1646188853374,24.0678,98.838,98.77,15.184]
[1646188853575,24.0678,98.838,98.77,23.184]
[1646188855188,24.0678,98.838,98.771,2.0402266]
[1646188855491,24.0678,98.838,98.78,15.182]
[1646188855687,24.8315,98.867,98.78,15.182]
[1646188855890,4.046,98.898,98.781,2.13989892]
[1646188856089,24.4867,98.899,98.791,0.35402514]
[1646188856289,59.03563,98.898,98.801,1.92078006]
[1646188856488,59.03563,98.898,98.82,15.1755]
[1646188856689,59.03563,98.898,98.821,14.95544082]
[1646188857088,59.03563,98.898,98.822,2.54904003]
[1646188859692,59.03563,98.898,98.822,10.82904003]
[1646188860093,59.03563,98.898,98.83,15.1754]
[1646188860493,59.03563,98.898,98.831,2.54904003]
[1646188860891,24.4867,98.899,98.831,2.54904003]
[1646188861093,23.1748,98.905,98.84,15.1737]
[1646188861492,23.1748,98.905,98.841,2.54904003]
[1646188862095,58.39426247,98.908,98.841,2.54904003]
[1646188862493,58.39426247,98.908,98.842,4.045]
[1646188862794,124.4117,98.935,98.842,4.045]
[1646188862993,124.4117,98.935,98.85,15.1719]
[1646188863391,124.4117,98.935,98.851,2.54904003]
[1646188863994,60.32432557,98.934,98.852,5.5812483]
[1646188864195,60.32432557,98.934,98.851,2.54904003]
[1646188865397,101.2,98.933,98.84,2.54904003]
[1646188866297,106.2,98.933,98.831,23.2186]
[1646188866497,112.77351125,98.933,98.831,23.2186]
[1646188867098,101.2,98.929,98.831,23.2186]
[1646188867697,103.72851125,98.929,98.831,23.2186]
[1646188868098,101.2,98.919,98.831,23.2186]
[1646188868297,101.2,98.917,98.831,23.2186]
[1646188870098,101.2,98.909,98.831,23.2186]
[1646188871104,15.1779,98.91,98.831,23.2186]
[1646188871300,101.2,98.909,98.811,4.045]
[1646188871502,101.2,98.889,98.801,22.7196]
[1646188872202,101.2,98.887,98.801,22.7196]
[1646188872400,101.2,98.885,98.802,18.57603134]
[1646188873104,50.21865951,98.886,98.803,2.54904003]
[1646188875101,50.21865951,98.886,98.81,15.1784]
[1646188875704,50.21865951,98.886,98.81,17.72744003]
[1646188876904,101.2,98.885,98.81,17.72744003]
[1646188877103,101.2,98.885,98.81,2.54904003]
[1646188879707,50.21865951,98.886,98.809,16.11826565]